[Event "Titled Tuesday Blitz November 22 Early 2022"]
[White "Melikyan, Gnel"]
[Black "Samunenkov, Ihor"]
[WhiteFideId "54109990"]
[BlackFideId "14187086"]
[WhiteElo "2138"]
[BlackElo "2441"]
[Result "0-1"]
[Round "09"]
[TimeControl "180+1"]
[Date "2022.11.23"]
[WhiteClock "0:00:08"]
[BlackClock "0:00:04"]

1. a3 {[%clk 0:02:58]}  d5 {[%clk 0:02:55]} 2. d4 {[%clk 0:02:58]}  Nf6 {[%clk 0:02:53]} 3. Nf3 {[%clk 0:02:58]}  Bf5 {[%clk 0:02:45]} 4. Bf4 {[%clk 0:02:57]}  e6 {[%clk 0:02:44]} 5. e3 {[%clk 0:02:57]}  Bd6 {[%clk 0:02:32]} 6. Bxd6 {[%clk 0:02:53]}  Qxd6 {[%clk 0:02:33]} 7. c4 {[%clk 0:02:54]}  dxc4 {[%clk 0:02:31]} 8. Bxc4 {[%clk 0:02:53]}  O-O {[%clk 0:02:31]} 9. O-O {[%clk 0:02:51]}  c5 {[%clk 0:02:28]} 10. dxc5 {[%clk 0:02:51]}  Qxc5 {[%clk 0:02:28]} 11. Qd4 {[%clk 0:02:51]}  Qe7 {[%clk 0:02:22]} 12. Nc3 {[%clk 0:02:48]}  Nc6 {[%clk 0:02:21]} 13. Qh4 {[%clk 0:02:41]}  h6 {[%clk 0:02:14]} 14. Rfd1 {[%clk 0:02:38]}  Rac8 {[%clk 0:02:12]} 15. Bd3 {[%clk 0:02:32]}  Bxd3 {[%clk 0:02:04]} 16. Rxd3 {[%clk 0:02:32]}  Rfd8 {[%clk 0:02:02]} 17. Rad1 {[%clk 0:02:31]}  Rxd3 {[%clk 0:02:02]} 18. Rxd3 {[%clk 0:02:32]}  Rd8 {[%clk 0:02:03]} 19. Qc4 {[%clk 0:02:31]}  a6 {[%clk 0:01:40]} 20. Kf1 {[%clk 0:02:17]}  Rc8 {[%clk 0:01:31]} 21. Ne5 {[%clk 0:02:06]}  Kh7 {[%clk 0:01:19]} 22. Nxc6 {[%clk 0:01:42]}  Rxc6 {[%clk 0:01:20]} 23. Qd4 {[%clk 0:01:42]}  Qc7 {[%clk 0:01:13]} 24. g3 {[%clk 0:01:30]}  b5 {[%clk 0:00:55]} 25. Qd8 {[%clk 0:01:27]}  Qb7 {[%clk 0:00:54]} 26. Rd4 {[%clk 0:01:19]}  Rc8 {[%clk 0:00:49]} 27. Qd6 {[%clk 0:01:08]}  Qh1+ {[%clk 0:00:49]} 28. Ke2 {[%clk 0:01:09]}  Qxh2 {[%clk 0:00:33]} 29. Qxa6 {[%clk 0:01:07]}  Rc5 {[%clk 0:00:24]} 30. Qb7 {[%clk 0:01:00]}  Qh5+ {[%clk 0:00:08]} 31. Qf3 {[%clk 0:01:00]}  Qg6 {[%clk 0:00:08]} 32. e4 {[%clk 0:00:52]}  Ng4 {[%clk 0:00:06]} 33. Rd1 {[%clk 0:00:34]}  Ne5 {[%clk 0:00:06]} 34. Qe3 {[%clk 0:00:34]}  Qh5+ {[%clk 0:00:06]} 35. f3 {[%clk 0:00:33]}  Nc4 {[%clk 0:00:06]} 36. Qf2 {[%clk 0:00:19]}  Nxb2 {[%clk 0:00:07]} 37. Rc1 {[%clk 0:00:19]}  Na4 {[%clk 0:00:06]} 38. Kd3 {[%clk 0:00:15]}  Qe5 {[%clk 0:00:04]} 39. Qd2 {[%clk 0:00:11]}  Nxc3 {[%clk 0:00:04]} 40. Rxc3 {[%clk 0:00:12]}  Rxc3+ {[%clk 0:00:05]} 41. Qxc3 {[%clk 0:00:12]}  Qxg3 {[%clk 0:00:04]} 42. Ke3 {[%clk 0:00:08]}  Qg1+ {[%clk 0:00:04]} 43. Kf4 {[%clk 0:00:08]}  Qg5# {[%clk 0:00:04]} 0-1


[Site "https://www.chess.com"]

[Event "Titled Tuesday Blitz November 22 Early 2022"]
[White "Mesa Cruz, Juan Carlos"]
[Black "Johnson, Ben"]
[WhiteFideId "6423400"]
[BlackFideId "2010917"]
[WhiteElo "2059"]
[BlackElo "2141"]
[Result "1-0"]
[Round "09"]
[TimeControl "180+1"]
[Date "2022.11.23"]
[WhiteClock "0:00:21"]
[BlackClock "0:00:03"]

1. e4 {[%clk 0:02:30]}  c5 {[%clk 0:02:57]} 2. Nf3 {[%clk 0:02:27]}  Nc6 {[%clk 0:02:58]} 3. c3 {[%clk 0:02:24]}  Nf6 {[%clk 0:02:57]} 4. e5 {[%clk 0:02:23]}  Nd5 {[%clk 0:02:57]} 5. d4 {[%clk 0:02:24]}  cxd4 {[%clk 0:02:58]} 6. cxd4 {[%clk 0:02:22]}  d6 {[%clk 0:02:58]} 7. Bc4 {[%clk 0:02:21]}  Nb6 {[%clk 0:02:57]} 8. Bb3 {[%clk 0:02:17]}  dxe5 {[%clk 0:02:55]} 9. dxe5 {[%clk 0:02:15]}  Qxd1+ {[%clk 0:02:54]} 10. Bxd1 {[%clk 0:02:16]}  Bg4 {[%clk 0:02:49]} 11. Nbd2 {[%clk 0:02:03]}  e6 {[%clk 0:02:47]} 12. h3 {[%clk 0:02:02]}  Bh5 {[%clk 0:02:44]} 13. a3 {[%clk 0:01:51]}  O-O-O {[%clk 0:02:39]} 14. O-O {[%clk 0:01:48]}  Be7 {[%clk 0:02:30]} 15. Re1 {[%clk 0:01:37]}  Rd7 {[%clk 0:02:03]} 16. Nb3 {[%clk 0:01:35]}  Rxd1 {[%clk 0:01:16]} 17. Rxd1 {[%clk 0:01:29]}  Nxe5 {[%clk 0:01:16]} 18. Bf4 {[%clk 0:01:26]}  Nxf3+ {[%clk 0:01:10]} 19. gxf3 {[%clk 0:01:25]}  Bxf3 {[%clk 0:01:11]} 20. Rac1+ {[%clk 0:01:24]}  Bc6 {[%clk 0:01:01]} 21. Na5 {[%clk 0:01:24]}  Nd5 {[%clk 0:00:55]} 22. Nxc6 {[%clk 0:01:17]}  bxc6 {[%clk 0:00:56]} 23. Rxc6+ {[%clk 0:01:16]}  Kd7 {[%clk 0:00:54]} 24. Rc7+ {[%clk 0:01:10]}  Kd8 {[%clk 0:00:42]} 25. Rxa7 {[%clk 0:00:50]}  Ke8 {[%clk 0:00:35]} 26. Ra8+ {[%clk 0:00:45]}  Bd8 {[%clk 0:00:35]} 27. Bc7 {[%clk 0:00:45]}  Ke7 {[%clk 0:00:25]} 28. Bxd8+ {[%clk 0:00:45]}  Rxd8 {[%clk 0:00:26]} 29. Rxd8 {[%clk 0:00:45]}  Kxd8 {[%clk 0:00:26]} 30. Kg2 {[%clk 0:00:46]}  Kc7 {[%clk 0:00:26]} 31. Kf3 {[%clk 0:00:46]}  Kc6 {[%clk 0:00:27]} 32. Rg1 {[%clk 0:00:43]}  g6 {[%clk 0:00:26]} 33. Rc1+ {[%clk 0:00:42]}  Kb5 {[%clk 0:00:25]} 34. Ke4 {[%clk 0:00:41]}  Nb6 {[%clk 0:00:19]} 35. b3 {[%clk 0:00:39]}  Nd5 {[%clk 0:00:10]} 36. Ke5 {[%clk 0:00:37]}  f6+ {[%clk 0:00:07]} 37. Kxe6 {[%clk 0:00:36]}  Nf4+ {[%clk 0:00:08]} 38. Kxf6 {[%clk 0:00:36]}  Nxh3 {[%clk 0:00:09]} 39. Rc2 {[%clk 0:00:29]}  Nf4 {[%clk 0:00:09]} 40. Kg7 {[%clk 0:00:29]}  h5 {[%clk 0:00:09]} 41. Rc4 {[%clk 0:00:25]}  g5 {[%clk 0:00:10]} 42. Kf6 {[%clk 0:00:23]}  h4 {[%clk 0:00:04]} 43. Kxg5 {[%clk 0:00:22]}  Ng2 {[%clk 0:00:03]} 44. Rxh4 {[%clk 0:00:21]} 1-0


[Site "https://www.chess.com"]

[Event "Titled Tuesday Blitz November 22 Early 2022"]
[White "Miszler, Levente"]
[Black "Ajay, Karthikeyan"]
[WhiteFideId "763276"]
[BlackFideId "35011685"]
[WhiteElo "2176"]
[BlackElo "2337"]
[Result "0-1"]
[Round "09"]
[TimeControl "180+1"]
[Date "2022.11.23"]
[WhiteClock "0:00:38"]
[BlackClock "0:00:19"]

1. Nf3 {[%clk 0:03:00]}  d5 {[%clk 0:02:58]} 2. d4 {[%clk 0:02:59]}  Nf6 {[%clk 0:02:54]} 3. g3 {[%clk 0:02:58]}  Bf5 {[%clk 0:02:53]} 4. Bg2 {[%clk 0:02:59]}  e6 {[%clk 0:02:53]} 5. O-O {[%clk 0:02:59]}  h6 {[%clk 0:02:53]} 6. c4 {[%clk 0:02:58]}  c6 {[%clk 0:02:54]} 7. Nc3 {[%clk 0:02:55]}  Nbd7 {[%clk 0:02:53]} 8. Nd2 {[%clk 0:02:56]}  Be7 {[%clk 0:02:51]} 9. e4 {[%clk 0:02:55]}  dxe4 {[%clk 0:02:51]} 10. Ndxe4 {[%clk 0:02:56]}  O-O {[%clk 0:02:51]} 11. Be3 {[%clk 0:02:56]}  Nxe4 {[%clk 0:02:47]} 12. Nxe4 {[%clk 0:02:57]}  Nf6 {[%clk 0:02:47]} 13. Nxf6+ {[%clk 0:02:53]}  Bxf6 {[%clk 0:02:47]} 14. Qb3 {[%clk 0:02:53]}  Qb6 {[%clk 0:02:47]} 15. d5 {[%clk 0:02:36]}  Qxb3 {[%clk 0:02:45]} 16. axb3 {[%clk 0:02:37]}  cxd5 {[%clk 0:02:30]} 17. cxd5 {[%clk 0:02:36]}  exd5 {[%clk 0:02:31]} 18. Bxd5 {[%clk 0:02:35]}  Bxb2 {[%clk 0:02:31]} 19. Rxa7 {[%clk 0:02:31]}  Rxa7 {[%clk 0:02:32]} 20. Bxa7 {[%clk 0:02:31]}  Rd8 {[%clk 0:02:28]} 21. Rd1 {[%clk 0:02:19]}  Be6 {[%clk 0:02:12]} 22. Bf3 {[%clk 0:02:18]}  Ra8 {[%clk 0:02:07]} 23. Rd2 {[%clk 0:01:51]}  Bc1 {[%clk 0:01:42]} 24. Rc2 {[%clk 0:01:39]}  Bxb3 {[%clk 0:01:36]} 25. Rxc1 {[%clk 0:01:39]}  Rxa7 {[%clk 0:01:36]} 26. Rb1 {[%clk 0:01:38]}  Bc4 {[%clk 0:01:35]} 27. Bxb7 {[%clk 0:01:31]}  g6 {[%clk 0:01:34]} 28. Bg2 {[%clk 0:01:26]}  Kg7 {[%clk 0:01:31]} 29. Bf1 {[%clk 0:01:26]}  Be6 {[%clk 0:01:31]} 30. h4 {[%clk 0:01:25]}  g5 {[%clk 0:01:30]} 31. hxg5 {[%clk 0:01:25]}  hxg5 {[%clk 0:01:31]} 32. Rc1 {[%clk 0:01:24]}  Ra5 {[%clk 0:01:25]} 33. Bg2 {[%clk 0:01:24]}  Ra2 {[%clk 0:01:23]} 34. Bf3 {[%clk 0:01:21]}  Rd2 {[%clk 0:01:21]} 35. Rd1 {[%clk 0:01:20]}  Rc2 {[%clk 0:01:20]} 36. Be4 {[%clk 0:01:20]}  Re2 {[%clk 0:01:18]} 37. Bf3 {[%clk 0:01:20]}  Rc2 {[%clk 0:01:19]} 38. Be4 {[%clk 0:01:19]}  Rb2 {[%clk 0:01:19]} 39. Bd5 {[%clk 0:01:18]}  Bg4 {[%clk 0:01:15]} 40. Re1 {[%clk 0:01:17]}  Kf6 {[%clk 0:01:13]} 41. Kg2 {[%clk 0:01:16]}  Be2 {[%clk 0:01:12]} 42. Bf3 {[%clk 0:01:12]}  Bc4 {[%clk 0:01:12]} 43. Rc1 {[%clk 0:01:12]}  Be6 {[%clk 0:01:11]} 44. Rc6 {[%clk 0:01:11]}  Ke5 {[%clk 0:01:08]} 45. Ra6 {[%clk 0:01:06]}  g4 {[%clk 0:01:02]} 46. Ra5+ {[%clk 0:01:04]}  Kf6 {[%clk 0:00:56]} 47. Bd1 {[%clk 0:00:59]}  Rd2 {[%clk 0:00:55]} 48. Ra1 {[%clk 0:00:56]}  Kg5 {[%clk 0:00:48]} 49. Kf1 {[%clk 0:00:55]}  Bc4+ {[%clk 0:00:39]} 50. Ke1 {[%clk 0:00:55]}  Rd5 {[%clk 0:00:40]} 51. f3 {[%clk 0:00:51]}  Rd3 {[%clk 0:00:25]} 52. Ra5+ {[%clk 0:00:46]}  Kf6 {[%clk 0:00:25]} 53. Ra4 {[%clk 0:00:43]}  Rxd1+ {[%clk 0:00:20]} 54. Kxd1 {[%clk 0:00:41]}  Bb3+ {[%clk 0:00:20]} 55. Kd2 {[%clk 0:00:37]}  Bxa4 {[%clk 0:00:21]} 56. fxg4 {[%clk 0:00:37]}  Bd7 {[%clk 0:00:21]} 57. Ke3 {[%clk 0:00:38]}  Bxg4 {[%clk 0:00:21]} 58. Kf4 {[%clk 0:00:38]}  Be6 {[%clk 0:00:18]} 59. g4 {[%clk 0:00:38]}  Kg6 {[%clk 0:00:19]} 0-1


[Site "https://www.chess.com"]

[Event "Titled Tuesday Blitz November 22 Early 2022"]
[White "Munkhgal, Gombosuren"]
[Black "Tologon tegin, Semetei"]
[WhiteFideId "4901266"]
[BlackFideId "13800574"]
[WhiteElo "2576"]
[BlackElo "2282"]
[Result "1-0"]
[Round "09"]
[TimeControl "180+1"]
[Date "2022.11.22"]
[WhiteClock "0:01:04"]
[BlackClock "0:00:29"]

1. d4 {[%clk 0:02:36]}  Nf6 {[%clk 0:02:56]} 2. Bf4 {[%clk 0:02:36]}  d5 {[%clk 0:02:56]} 3. e3 {[%clk 0:02:37]}  c5 {[%clk 0:02:55]} 4. c3 {[%clk 0:02:36]}  Nc6 {[%clk 0:02:55]} 5. Nd2 {[%clk 0:02:37]}  Qb6 {[%clk 0:02:40]} 6. Qb3 {[%clk 0:02:37]}  Bf5 {[%clk 0:02:39]} 7. dxc5 {[%clk 0:02:34]}  Qxb3 {[%clk 0:02:34]} 8. Nxb3 {[%clk 0:02:31]}  e5 {[%clk 0:02:34]} 9. Bg3 {[%clk 0:02:31]}  Nd7 {[%clk 0:02:31]} 10. Bb5 {[%clk 0:02:31]}  f6 {[%clk 0:02:30]} 11. O-O-O {[%clk 0:02:29]}  Be6 {[%clk 0:02:28]} 12. f4 {[%clk 0:02:22]}  a6 {[%clk 0:02:00]} 13. Bxc6 {[%clk 0:02:10]}  bxc6 {[%clk 0:02:01]} 14. fxe5 {[%clk 0:02:11]}  fxe5 {[%clk 0:02:00]} 15. Nf3 {[%clk 0:02:12]}  Bg4 {[%clk 0:01:54]} 16. Rdf1 {[%clk 0:02:06]}  Bxf3 {[%clk 0:01:36]} 17. Rxf3 {[%clk 0:02:05]}  Nxc5 {[%clk 0:01:36]} 18. Nxc5 {[%clk 0:02:05]}  Bxc5 {[%clk 0:01:36]} 19. Bxe5 {[%clk 0:02:05]}  Ra7 {[%clk 0:01:35]} 20. Bd4 {[%clk 0:02:05]}  Bxd4 {[%clk 0:01:33]} 21. exd4 {[%clk 0:02:06]}  Re7 {[%clk 0:01:33]} 22. Kd2 {[%clk 0:02:03]}  Kd7 {[%clk 0:01:33]} 23. Re1 {[%clk 0:02:04]}  Rhe8 {[%clk 0:01:33]} 24. Rxe7+ {[%clk 0:02:03]}  Rxe7 {[%clk 0:01:34]} 25. Rf8 {[%clk 0:01:56]}  Kc7 {[%clk 0:01:31]} 26. Rh8 {[%clk 0:01:41]}  h6 {[%clk 0:01:28]} 27. Rg8 {[%clk 0:01:42]}  Rf7 {[%clk 0:01:17]} 28. Ke3 {[%clk 0:01:41]}  Re7+ {[%clk 0:01:15]} 29. Kf3 {[%clk 0:01:41]}  Rf7+ {[%clk 0:01:15]} 30. Kg3 {[%clk 0:01:40]}  Kb6 {[%clk 0:01:13]} 31. h4 {[%clk 0:01:40]}  Re7 {[%clk 0:01:11]} 32. Kf3 {[%clk 0:01:30]}  a5 {[%clk 0:01:11]} 33. a4 {[%clk 0:01:29]}  Rf7+ {[%clk 0:01:07]} 34. Ke3 {[%clk 0:01:20]}  Re7+ {[%clk 0:01:07]} 35. Kd3 {[%clk 0:01:20]}  Rf7 {[%clk 0:01:07]} 36. g4 {[%clk 0:01:19]}  Rf3+ {[%clk 0:00:44]} 37. Ke2 {[%clk 0:01:16]}  Rh3 {[%clk 0:00:44]} 38. h5 {[%clk 0:01:16]}  Rh2+ {[%clk 0:00:44]} 39. Kd3 {[%clk 0:01:16]}  Ka6 {[%clk 0:00:40]} 40. Rxg7 {[%clk 0:01:13]}  Rxb2 {[%clk 0:00:39]} 41. Rg6 {[%clk 0:01:13]}  Kb6 {[%clk 0:00:40]} 42. Rxh6 {[%clk 0:01:13]}  Ra2 {[%clk 0:00:40]} 43. g5 {[%clk 0:01:06]}  Rg2 {[%clk 0:00:34]} 44. g6 {[%clk 0:01:06]}  Rg3+ {[%clk 0:00:35]} 45. Ke2 {[%clk 0:01:05]}  Kc7 {[%clk 0:00:28]} 46. Rh7+ {[%clk 0:01:05]}  Kd6 {[%clk 0:00:29]} 47. g7 {[%clk 0:01:05]}  Ke6 {[%clk 0:00:29]} 48. h6 {[%clk 0:01:04]} 1-0


[Site "https://www.chess.com"]

[Event "Titled Tuesday Blitz November 22 Early 2022"]
[White "Nakamura, Hikaru"]
[Black "Jobava, Baadur"]
[WhiteFideId "2016192"]
[BlackFideId "13601520"]
[WhiteElo "2909"]
[BlackElo "2582"]
[Result "1/2-1/2"]
[Round "09"]
[TimeControl "180+1"]
[Date "2022.11.22"]
[WhiteClock "0:00:05"]
[BlackClock "0:00:08"]

1. Nf3 {[%clk 0:03:00]}  d5 {[%clk 0:02:59]} 2. e3 {[%clk 0:03:01]}  c6 {[%clk 0:02:59]} 3. c4 {[%clk 0:03:01]}  Nf6 {[%clk 0:03:00]} 4. d4 {[%clk 0:03:01]}  Bf5 {[%clk 0:02:59]} 5. Nc3 {[%clk 0:03:00]}  e6 {[%clk 0:03:00]} 6. Nh4 {[%clk 0:03:00]}  Bg6 {[%clk 0:03:01]} 7. Nxg6 {[%clk 0:03:00]}  hxg6 {[%clk 0:03:01]} 8. Rb1 {[%clk 0:03:01]}  Nbd7 {[%clk 0:02:52]} 9. c5 {[%clk 0:03:00]}  g5 {[%clk 0:02:46]} 10. b4 {[%clk 0:02:59]}  a6 {[%clk 0:02:37]} 11. a4 {[%clk 0:02:58]}  g6 {[%clk 0:02:37]} 12. b5 {[%clk 0:02:58]}  axb5 {[%clk 0:02:38]} 13. axb5 {[%clk 0:02:58]}  Bg7 {[%clk 0:02:37]} 14. g4 {[%clk 0:02:41]}  e5 {[%clk 0:02:32]} 15. h3 {[%clk 0:02:36]}  O-O {[%clk 0:02:27]} 16. Bg2 {[%clk 0:02:26]}  exd4 {[%clk 0:02:25]} 17. exd4 {[%clk 0:02:24]}  Re8+ {[%clk 0:02:23]} 18. Be3 {[%clk 0:02:12]}  Ra3 {[%clk 0:01:59]} 19. Ne2 {[%clk 0:02:05]}  Qa5+ {[%clk 0:01:25]} 20. Bd2 {[%clk 0:01:43]}  Qa4 {[%clk 0:01:16]} 21. Qxa4 {[%clk 0:01:43]}  Rxa4 {[%clk 0:01:17]} 22. bxc6 {[%clk 0:01:44]}  bxc6 {[%clk 0:01:17]} 23. Be3 {[%clk 0:01:45]}  Ra2 {[%clk 0:01:03]} 24. Bf3 {[%clk 0:01:18]}  Ne4 {[%clk 0:01:03]} 25. Bxe4 {[%clk 0:01:13]}  Rxe4 {[%clk 0:01:00]} 26. Nc3 {[%clk 0:01:11]}  Rxe3+ {[%clk 0:00:33]} 27. fxe3 {[%clk 0:01:09]}  Ra3 {[%clk 0:00:34]} 28. Kd2 {[%clk 0:00:45]}  Nxc5 {[%clk 0:00:34]} 29. Kc2 {[%clk 0:00:46]}  Ne4 {[%clk 0:00:24]} 30. Rb8+ {[%clk 0:00:33]}  Kh7 {[%clk 0:00:24]} 31. Nxe4 {[%clk 0:00:28]}  dxe4 {[%clk 0:00:25]} 32. h4 {[%clk 0:00:29]}  Kh6 {[%clk 0:00:12]} 33. Rb3 {[%clk 0:00:27]}  Ra2+ {[%clk 0:00:09]} 34. Rb2 {[%clk 0:00:27]}  Ra3 {[%clk 0:00:10]} 35. Rb7 {[%clk 0:00:18]}  Rxe3 {[%clk 0:00:08]} 36. h5 {[%clk 0:00:16]}  Bxd4 {[%clk 0:00:07]} 37. Rxf7 {[%clk 0:00:15]}  Rc3+ {[%clk 0:00:06]} 38. Kd1 {[%clk 0:00:13]}  Rd3+ {[%clk 0:00:07]} 39. Ke2 {[%clk 0:00:14]}  Re3+ {[%clk 0:00:07]} 40. Kd2 {[%clk 0:00:14]}  Rd3+ {[%clk 0:00:08]} 41. Kc2 {[%clk 0:00:15]}  Rc3+ {[%clk 0:00:08]} 42. Kb1 {[%clk 0:00:15]}  Rb3+ {[%clk 0:00:08]} 43. Ka2 {[%clk 0:00:15]}  Rb2+ {[%clk 0:00:05]} 44. Ka3 {[%clk 0:00:16]}  Rg2 {[%clk 0:00:05]} 45. Rd7 {[%clk 0:00:14]}  c5 {[%clk 0:00:05]} 46. Rd6 {[%clk 0:00:12]}  Rg3+ {[%clk 0:00:04]} 47. Ka4 {[%clk 0:00:12]}  Kg7 {[%clk 0:00:02]} 48. hxg6 {[%clk 0:00:13]}  Bf6 {[%clk 0:00:02]} 49. Rf1 {[%clk 0:00:09]}  Rf3 {[%clk 0:00:03]} 50. Rxf3 {[%clk 0:00:08]}  exf3 {[%clk 0:00:04]} 51. Rd3 {[%clk 0:00:09]}  f2 {[%clk 0:00:04]} 52. Rf3 {[%clk 0:00:09]}  Bd4 {[%clk 0:00:04]} 53. Kb5 {[%clk 0:00:10]}  Kxg6 {[%clk 0:00:05]} 54. Kc4 {[%clk 0:00:11]}  Kg7 {[%clk 0:00:06]} 55. Rf5 {[%clk 0:00:11]}  Kg6 {[%clk 0:00:06]} 56. Kd5 {[%clk 0:00:12]}  Be3 {[%clk 0:00:06]} 57. Ke4 {[%clk 0:00:13]}  Bd4 {[%clk 0:00:07]} 58. Kd3 {[%clk 0:00:13]}  Kh6 {[%clk 0:00:07]} 59. Ke2 {[%clk 0:00:14]}  Kg6 {[%clk 0:00:07]} 60. Kd2 {[%clk 0:00:14]}  Kh6 {[%clk 0:00:07]} 61. Kd3 {[%clk 0:00:14]}  Kg6 {[%clk 0:00:08]} 62. Ke4 {[%clk 0:00:15]}  Kh6 {[%clk 0:00:08]} 63. Rf3 {[%clk 0:00:16]}  Kg6 {[%clk 0:00:08]} 64. Kd5 {[%clk 0:00:16]}  Be3 {[%clk 0:00:07]} 65. Kc4 {[%clk 0:00:11]}  Bd4 {[%clk 0:00:08]} 66. Kb3 {[%clk 0:00:11]}  Kg7 {[%clk 0:00:07]} 67. Kc2 {[%clk 0:00:11]}  Kg6 {[%clk 0:00:08]} 68. Kd2 {[%clk 0:00:11]}  Kg7 {[%clk 0:00:07]} 69. Ke2 {[%clk 0:00:11]}  Kg6 {[%clk 0:00:07]} 70. Rf5 {[%clk 0:00:11]}  Kh6 {[%clk 0:00:07]} 71. Rf3 {[%clk 0:00:08]}  Kg6 {[%clk 0:00:08]} 72. Kd1 {[%clk 0:00:08]}  Kg7 {[%clk 0:00:07]} 73. Kd2 {[%clk 0:00:09]}  Kg6 {[%clk 0:00:07]} 74. Kd3 {[%clk 0:00:10]}  Kg7 {[%clk 0:00:07]} 75. Ke4 {[%clk 0:00:08]}  Kg6 {[%clk 0:00:07]} 76. Rf5 {[%clk 0:00:08]}  Kh6 {[%clk 0:00:07]} 77. Kd5 {[%clk 0:00:09]}  Kg6 {[%clk 0:00:08]} 78. Rf3 {[%clk 0:00:09]}  Kg7 {[%clk 0:00:08]} 79. Ke4 {[%clk 0:00:05]}  Kg6 {[%clk 0:00:08]} 1/2-1/2


[Site "https://www.chess.com"]

[Event "Titled Tuesday Blitz November 22 Early 2022"]
[White "Nugumanov, Bakhtiyar"]
[Black "Ljukin, Sergei"]
[WhiteFideId "13701797"]
[BlackFideId "14102200"]
[WhiteElo "2287"]
[BlackElo "2312"]
[Result "1-0"]
[Round "09"]
[TimeControl "180+1"]
[Date "2022.11.23"]
[WhiteClock "0:01:19"]
[BlackClock "0:00:29"]

1. Nf3 {[%clk 0:03:00]}  d5 {[%clk 0:02:58]} 2. g3 {[%clk 0:03:01]}  Nc6 {[%clk 0:02:58]} 3. d4 {[%clk 0:03:00]}  Bf5 {[%clk 0:02:57]} 4. Bg2 {[%clk 0:03:00]}  Qd7 {[%clk 0:02:57]} 5. c4 {[%clk 0:03:00]}  dxc4 {[%clk 0:02:54]} 6. d5 {[%clk 0:02:56]}  O-O-O {[%clk 0:02:53]} 7. Nc3 {[%clk 0:02:45]}  Nb4 {[%clk 0:02:33]} 8. O-O {[%clk 0:02:39]}  Nxd5 {[%clk 0:02:18]} 9. Nxd5 {[%clk 0:02:37]}  Qxd5 {[%clk 0:02:18]} 10. Qa4 {[%clk 0:02:38]}  a6 {[%clk 0:02:10]} 11. Ng5 {[%clk 0:02:17]}  Bd7 {[%clk 0:01:44]} 12. Qc2 {[%clk 0:01:39]}  Qb5 {[%clk 0:01:04]} 13. Nxf7 {[%clk 0:01:32]}  Bc6 {[%clk 0:01:01]} 14. Nxd8 {[%clk 0:01:24]}  Kxd8 {[%clk 0:00:59]} 15. Rd1+ {[%clk 0:01:24]}  Kc8 {[%clk 0:00:59]} 16. a4 {[%clk 0:01:24]}  Qc5 {[%clk 0:00:29]} 17. Be3 {[%clk 0:01:19]} 1-0


[Site "https://www.chess.com"]

[Event "Titled Tuesday Blitz November 22 Early 2022"]
[White "Orzech, Dominik"]
[Black "Zaksaite, Salomeja"]
[WhiteFideId "1115065"]
[BlackFideId "12801496"]
[WhiteElo "2272"]
[BlackElo "2079"]
[Result "0-1"]
[Round "09"]
[TimeControl "180+1"]
[Date "2022.11.23"]
[WhiteClock "0:02:47"]
[BlackClock "0:02:38"]

1. g3 {[%clk 0:02:56]}  e5 {[%clk 0:02:57]} 2. Bg2 {[%clk 0:02:57]}  d5 {[%clk 0:02:57]} 3. c4 {[%clk 0:02:57]}  d4 {[%clk 0:02:53]} 4. d3 {[%clk 0:02:54]}  Nf6 {[%clk 0:02:51]} 5. Nf3 {[%clk 0:02:54]}  Nc6 {[%clk 0:02:47]} 6. O-O {[%clk 0:02:53]}  Bd6 {[%clk 0:02:46]} 7. b4 {[%clk 0:02:50]}  Nxb4 {[%clk 0:02:42]} 8. Nxe5 {[%clk 0:02:49]}  Bxe5 {[%clk 0:02:41]} 9. Qa4+ {[%clk 0:02:48]}  Nc6 {[%clk 0:02:38]} 10. Bxc6+ {[%clk 0:02:46]}  bxc6 {[%clk 0:02:38]} 11. Qxc6+ {[%clk 0:02:47]}  Bd7 {[%clk 0:02:38]} 0-1


[Site "https://www.chess.com"]

[Event "Titled Tuesday Blitz November 22 Early 2022"]
[White "Osmonbekov, Talaibek"]
[Black "Goriatchkin, Jouri"]
[WhiteFideId "2017253"]
[BlackFideId "4120183"]
[WhiteElo "2135"]
[BlackElo "1928"]
[Result "1-0"]
[Round "09"]
[TimeControl "180+1"]
[Date "2022.11.23"]
[WhiteClock "0:01:52"]
[BlackClock "0:00:34"]

1. d4 {[%clk 0:03:00]}  d5 {[%clk 0:02:57]} 2. Bf4 {[%clk 0:03:00]}  Nf6 {[%clk 0:02:49]} 3. Nc3 {[%clk 0:02:57]}  c6 {[%clk 0:02:42]} 4. e3 {[%clk 0:02:57]}  Bf5 {[%clk 0:02:40]} 5. f3 {[%clk 0:02:57]}  e6 {[%clk 0:02:38]} 6. g4 {[%clk 0:02:57]}  Bg6 {[%clk 0:02:36]} 7. h4 {[%clk 0:02:58]}  h5 {[%clk 0:02:34]} 8. g5 {[%clk 0:02:58]}  Nfd7 {[%clk 0:02:23]} 9. Bd3 {[%clk 0:02:59]}  Bxd3 {[%clk 0:02:22]} 10. Qxd3 {[%clk 0:03:00]}  c5 {[%clk 0:02:18]} 11. Nge2 {[%clk 0:02:48]}  a6 {[%clk 0:02:12]} 12. g6 {[%clk 0:02:43]}  f6 {[%clk 0:02:09]} 13. e4 {[%clk 0:02:43]}  c4 {[%clk 0:01:56]} 14. Qe3 {[%clk 0:02:42]}  Be7 {[%clk 0:01:17]} 15. exd5 {[%clk 0:02:35]}  e5 {[%clk 0:01:14]} 16. dxe5 {[%clk 0:02:27]}  fxe5 {[%clk 0:01:14]} 17. Bxe5 {[%clk 0:02:24]}  Bxh4+ {[%clk 0:00:51]} 18. Bg3+ {[%clk 0:02:24]}  Qe7 {[%clk 0:00:41]} 19. Qxe7+ {[%clk 0:01:59]}  Bxe7 {[%clk 0:00:41]} 20. Nf4 {[%clk 0:01:58]}  Nf6 {[%clk 0:00:40]} 21. Ne6 {[%clk 0:01:53]}  Rg8 {[%clk 0:00:34]} 22. Nc7+ {[%clk 0:01:52]} 1-0


[Site "https://www.chess.com"]

[Event "Titled Tuesday Blitz November 22 Early 2022"]
[White "Palacio,Igor Da Paz"]
[Black "Roque Sola, Gisela"]
[WhiteFideId "2121140"]
[BlackFideId "5120241"]
[WhiteElo "2126"]
[BlackElo "1961"]
[Result "1-0"]
[Round "09"]
[TimeControl "180+1"]
[Date "2022.11.23"]
[WhiteClock "0:00:17"]
[BlackClock "0:00:10"]

1. e4 {[%clk 0:02:55]}  e6 {[%clk 0:02:56]} 2. d3 {[%clk 0:02:54]}  d5 {[%clk 0:02:56]} 3. Nd2 {[%clk 0:02:55]}  c5 {[%clk 0:02:53]} 4. g3 {[%clk 0:02:55]}  Nc6 {[%clk 0:02:51]} 5. Bg2 {[%clk 0:02:55]}  Be7 {[%clk 0:02:41]} 6. f4 {[%clk 0:02:56]}  Nf6 {[%clk 0:02:33]} 7. e5 {[%clk 0:02:54]}  Nd7 {[%clk 0:02:32]} 8. Ne2 {[%clk 0:02:51]}  b5 {[%clk 0:02:32]} 9. a4 {[%clk 0:02:48]}  b4 {[%clk 0:02:31]} 10. c4 {[%clk 0:02:47]}  Ndb8 {[%clk 0:02:06]} 11. O-O {[%clk 0:02:37]}  Bb7 {[%clk 0:02:03]} 12. b3 {[%clk 0:02:27]}  O-O {[%clk 0:01:47]} 13. Bb2 {[%clk 0:02:23]}  f6 {[%clk 0:01:42]} 14. exf6 {[%clk 0:02:20]}  Bxf6 {[%clk 0:01:43]} 15. Bxf6 {[%clk 0:02:18]}  gxf6 {[%clk 0:01:41]} 16. Nf3 {[%clk 0:01:51]}  Nd7 {[%clk 0:01:33]} 17. Bh3 {[%clk 0:01:18]}  Qe7 {[%clk 0:01:20]} 18. Re1 {[%clk 0:01:18]}  Rfe8 {[%clk 0:01:20]} 19. Kf2 {[%clk 0:01:15]}  d4 {[%clk 0:01:14]} 20. Neg1 {[%clk 0:01:01]}  e5 {[%clk 0:01:07]} 21. fxe5 {[%clk 0:01:01]}  fxe5 {[%clk 0:01:05]} 22. Nd2 {[%clk 0:00:55]}  Nf6 {[%clk 0:00:45]} 23. Ne4 {[%clk 0:00:52]}  Nxe4+ {[%clk 0:00:45]} 24. Rxe4 {[%clk 0:00:53]}  Qf6+ {[%clk 0:00:35]} 25. Qf3 {[%clk 0:00:47]}  Qxf3+ {[%clk 0:00:33]} 26. Nxf3 {[%clk 0:00:48]}  Rf8 {[%clk 0:00:27]} 27. Be6+ {[%clk 0:00:42]}  Kg7 {[%clk 0:00:19]} 28. Bd5 {[%clk 0:00:43]}  Rae8 {[%clk 0:00:17]} 29. Rae1 {[%clk 0:00:41]}  Kf6 {[%clk 0:00:14]} 30. Kg2 {[%clk 0:00:40]}  Na5 {[%clk 0:00:13]} 31. Bxb7 {[%clk 0:00:37]}  Nxb7 {[%clk 0:00:14]} 32. Nxe5 {[%clk 0:00:32]}  Kg7 {[%clk 0:00:10]} 33. Rg4+ {[%clk 0:00:19]}  Kh8 {[%clk 0:00:10]} 34. Nf7+ {[%clk 0:00:17]} 1-0


[Site "https://www.chess.com"]